bitfinex/quotes_SOLUSD_20251202
["timestamp","ask_amount","ask_price","bid_price","bid_amount"]
[1764634757339,8.7,127.27,127.25,37.4190562]
[1764634757517,9.4,127.27,127.25,7.85854616]
[1764634757718,0.7,127.26,127.25,7.85854616]
[1764634758533,0.7,127.26,127.24,17.77318695]
[1764634758741,0.7,127.26,127.23,26.22300862]
[1764634758943,0.7,127.26,127.23,24.16851048]
[1764634759417,0.7,127.26,127.23,34.0826551]
[1764634760023,0.7,127.26,127.23,17.7737911]
[1764634760733,0.7,127.26,127.24,9.91414462]
[1764634761038,8.7,127.25,127.24,17.7733084]
[1764634761919,8.7,127.25,127.24,22.2733084]
[1764634763523,9.4,127.25,127.24,22.2733084]
[1764634764847,8.7,127.25,127.24,22.2733084]
[1764634765149,9.4,127.25,127.24,12.35916378]
[1764634765525,9.4,127.25,127.23,12.35970097]
[1764634765726,0.7,127.24,127.23,12.35970097]
[1764634767250,0.84216157,127.24,127.21,7.86049296]
[1764634767644,7.1779602,127.24,127.21,7.86049296]
[1764634768046,0.7,127.23,127.21,7.86049296]
[1764634769265,8.7,127.22,127.21,7.86049296]
[1764634769469,8.7,127.22,127.2,7.86163061]
[1764634769636,8.7,127.22,127.18,2.28152415]
[1764634769637,2.98152415,127.21,127.18,7.86286999]
[1764634769844,16.56048634,127.22,127.18,10.84439414]
[1764634770143,0.67,127.21,127.18,10.84439414]
[1764634770345,0.67,127.21,127.19,2.28152415]
[1764634770945,0.67,127.21,127.18,10.84439414]
[1764634771660,8.7,127.2,127.19,10.1435316]
[1764634771857,8.7,127.2,127.19,30.4991649]
[1764634773531,8.7,127.2,127.19,10.1435316]
[1764634774039,8.7,127.2,127.18,7.86264653]
[1764634774040,9.37,127.2,127.18,7.86264653]
[1764634774353,9.37,127.2,127.18,10.14417068]
[1764634775341,0.67,127.2,127.18,10.14417068]
[1764634775546,8.7,127.19,127.18,10.14417068]
[1764634776140,0.67,127.2,127.18,10.14417068]
[1764634776341,8.7,127.19,127.18,10.14417068]
[1764634777541,8.7,127.19,127.18,10.84417068]
[1764634778242,8.7,127.19,127.18,10.14417068]
[1764634778850,8.7,127.19,127.18,10.84417068]
[1764634779971,8.7,127.2,127.18,30.50134948]
[1764634780141,8.7,127.2,127.19,2.28152415]
[1764634780341,8.7,127.2,127.18,30.50134948]
[1764634780565,8.7,127.2,127.18,29.80134948]
[1764634780566,9.37,127.2,127.18,29.80134948]
[1764634780951,0.67,127.19,127.18,7.86264653]
[1764634781559,9.38,127.2,127.18,7.86264653]
[1764634781739,0.68,127.19,127.18,7.86264653]
[1764634782463,0.68,127.19,127.17,7.86333113]
[1764634782772,2.96152415,127.19,127.16,12.36395208]
[1764634783274,0.14216157,127.17,127.13,2.28152415]
[1764634783463,8.7,127.16,127.13,7.86596397]
[1764634783764,9.38,127.16,127.13,7.86596397]
[1764634784066,0.68,127.15,127.13,7.86596397]
[1764634784448,0.68,127.15,127.13,10.14748812]
[1764634784649,9.38,127.16,127.13,10.14748812]
[1764634785358,8.7,127.16,127.13,10.14748812]
[1764634785670,9.38,127.16,127.13,10.14748812]
[1764634786055,8.7,127.16,127.13,10.14748812]
[1764634786263,0.68,127.15,127.13,10.14748812]
[1764634786669,0.68,127.15,127.13,7.86596397]
[1764634787060,2.96152415,127.15,127.12,8.06642814]
[1764634787547,0.68,127.14,127.12,8.06642814]
[1764634788301,0.14216157,127.13,127.12,0.2]
[1764634788449,2.42368572,127.13,127.12,0.2]
[1764634788649,3.10368572,127.13,127.12,0.2]
[1764634790254,10.96964969,127.13,127.12,0.2]
[1764634790768,19.66964969,127.13,127.12,0.2]
[1764634791177,28.47959461,127.13,127.12,0.2]
[1764634792067,44.78845861,127.13,127.12,0.2]
[1764634792268,44.78845861,127.13,127.12,1e-08]
[1764634792269,28.47959461,127.13,127.12,1e-08]
[1764634793378,19.77959461,127.13,127.12,1e-08]
[1764634793682,28.47959461,127.13,127.12,1e-08]
[1764634794368,26.19807046,127.13,127.12,1e-08]
[1764634794572,28.47959461,127.13,127.12,1e-08]
[1764634801189,103.47959461,127.13,127.12,1e-08]
[1764634804694,103.47959461,127.13,127.08,0.2]
[1764634804695,25.11880892,127.09,127.08,0.2]
[1764634804875,36.24249464,127.09,127.08,0.2]
[1764634805068,27.40033307,127.07,127.06,0.2]
[1764634805384,27.54249464,127.07,127.06,0.2]
[1764634805585,103.22249464,127.07,127.06,0.2]
[1764634805893,111.92249464,127.07,127.06,0.2]
[1764634806999,119.79217277,127.07,127.06,0.2]
[1764634807796,33.81064862,127.07,127.06,0.2]
[1764634807995,44.79217277,127.07,127.06,0.2]
[1764634812076,44.11217277,127.07,127.06,0.2]
[1764634812290,35.41217277,127.07,127.06,0.2]
[1764634812491,44.11217277,127.07,127.06,0.2]
[1764634813582,36.24249464,127.07,127.06,0.2]
[1764634814283,44.11217277,127.07,127.06,0.2]
[1764634814698,44.83217277,127.07,127.06,0.2]
[1764634815307,44.11217277,127.07,127.06,0.2]
[1764634815499,44.83217277,127.07,127.06,0.2]
[1764634815699,44.11217277,127.07,127.06,0.2]
[1764634816015,36.24249464,127.07,127.06,0.89]
[1764634816221,8.7,127.07,127.06,0.89]
[1764634816813,11.12368572,127.07,127.06,0.2]
[1764634817016,20.65363064,127.07,127.06,0.2]
[1764634817186,36.96249464,127.07,127.06,0.2]
[1764634818190,28.52330877,127.07,127.06,0.2]
[1764634818391,25.11880892,127.05,127.04,0.2]
[1764634818613,36.26249464,127.05,127.04,0.2]
[1764634818900,36.98249464,127.05,127.04,0.2]
[1764634820315,44.8534116,127.05,127.04,0.2]
[1764634823343,44.1134116,127.05,127.04,0.2]
[1764634823546,44.8334116,127.05,127.04,0.2]
[1764634824918,35.4134116,127.05,127.04,0.2]
[1764634825120,43.99125003,127.05,127.04,0.89]
[1764634825322,44.1334116,127.05,127.04,0.2]
[1764634825913,35.4134116,127.05,127.04,0.2]
[1764634826113,44.1134116,127.05,127.04,0.2]
[1764634827546,44.8334116,127.05,127.04,0.2]
[1764634828415,46.12872268,127.05,127.04,0.2]
[1764634836341,48.12872267,127.05,127.04,0.2]
[1764634836546,123.12872267,127.05,127.04,0.2]
[1764634837551,123.12872267,127.05,127.04,1e-08]
[1764634837753,8.95210649,127.0,126.99,0.2]
[1764634838060,21.22894172,127.0,126.99,0.2]
[1764634838360,21.90894172,127.0,126.99,0.2]
[1764634839058,21.90894172,127.0,126.99,0.9]
[1764634839059,37.53780572,127.0,126.99,0.9]
[1764634839626,45.41182146,127.0,126.99,0.9]
[1764634841952,45.41182146,127.0,126.99,0.2]
[1764634842153,46.08182146,127.0,126.99,0.2]
[1764634842356,41.83498623,127.0,126.99,0.2]
[1764634842549,46.10182146,127.0,126.99,0.2]
[1764634845061,29.79295746,127.0,126.99,0.2]
[1764634845359,25.26097049,126.97,126.96,0.2]
[1764634845535,37.55780572,126.97,126.96,0.2]
[1764634846438,38.22780572,126.97,126.96,0.2]
[1764634846760,37.55780572,126.97,126.96,0.2]
[1764634846931,25.26097049,126.97,126.96,0.92]
[1764634847135,45.43368191,126.97,126.96,0.2]
[1764634847448,46.10368191,126.97,126.96,0.2]
[1764634848162,49.68051714,126.97,126.96,0.2]
[1764634848856,46.10368191,126.97,126.96,0.2]
[1764634849043,33.13684668,126.97,126.96,0.2]
[1764634849243,45.43368191,126.97,126.96,0.2]
[1764634849451,49.68051714,126.97,126.96,0.2]
[1764634849852,46.10368191,126.97,126.96,0.2]
[1764634851539,49.68051714,126.97,126.96,0.2]
[1764634853648,25.11880892,126.94,126.93,0.2]
[1764634853857,37.55780572,126.94,126.93,0.2]
[1764634854167,38.22780572,126.94,126.93,0.2]
[1764634854369,37.55780572,126.94,126.93,0.2]
[1764634854865,37.55780572,126.94,126.93,0.92]
[1764634854866,33.138708,126.94,126.93,0.92]
[1764634855171,45.43554323,126.94,126.93,0.2]
[1764634857276,49.68237846,126.94,126.92,0.2]
[1764634857571,49.68237846,126.94,126.91,0.2]
[1764634857572,8.95210649,126.91,126.9,0.2]
[1764634857751,37.55780572,126.91,126.9,0.92]
[1764634858180,37.55780572,126.91,126.9,0.2]
[1764634858869,45.43740543,126.91,126.9,0.2]
[1764634859246,41.8605702,126.91,126.9,0.2]
[1764634859446,45.43740543,126.91,126.9,0.2]
[1764634860381,16.308864,126.88,126.87,0.2]
[1764634860682,28.7478608,126.88,126.87,0.2]
[1764634860883,46.10926851,126.88,126.87,0.2]
[1764634861055,46.10926851,126.88,126.85,0.2]
[1764634861056,75.14216157,126.86,126.85,1e-08]
[1764634861380,21.24894172,126.86,126.85,1e-08]
[1764634861560,16.45102557,126.86,126.85,0.72000001]
[1764634861883,25.19102557,126.86,126.85,0.72000001]
[1764634862184,8.74,126.86,126.85,0.72000001]
[1764634863784,8.74,126.86,126.85,8.60332677]
[1764634863970,8.74,126.86,126.85,0.72000001]
[1764634864288,12.4589968,126.86,126.85,0.72000001]
[1764634866977,12.4589968,126.86,126.85,1e-08]
[1764634867180,29.82164706,126.86,126.85,1e-08]
[1764634867382,36.72051106,126.86,126.85,0.72000001]
[1764634867584,45.46051106,126.86,126.85,0.72000001]
[1764634867976,45.46051106,126.86,126.85,1e-08]
[1764634868687,46.13051106,126.86,126.85,1e-08]
[1764634871872,45.46051106,126.86,126.85,1e-08]
[1764634872388,37.57780572,126.86,126.85,0.66000001]
[1764634872770,8.74,126.86,126.85,0.66000001]
[1764634873409,8.74,126.86,126.85,8.54332677]
[1764634875288,8.74,126.86,126.85,0.66000001]
[1764634875686,8.88216157,126.86,126.85,0.66000001]
[1764634876090,12.4589968,126.86,126.85,0.66000001]
[1764634876400,8.88216157,126.86,126.85,0.66000001]
[1764634876579,12.4589968,126.86,126.85,0.66000001]
[1764634877485,8.88216157,126.86,126.85,0.66000001]
[1764634879896,12.4589968,126.86,126.85,0.66000001]
[1764634881402,12.4589968,126.86,126.85,1e-08]
[1764634881603,8.88216157,126.86,126.85,1e-08]
[1764634881787,12.4589968,126.86,126.85,0.66000001]
[1764634882691,8.88216157,126.86,126.85,0.66000001]
[1764634882889,12.4589968,126.86,126.85,0.66000001]
[1764634884613,46.18051106,126.86,126.85,1e-08]
[1764634884904,42.60367583,126.86,126.85,1e-08]
[1764634885103,25.26097049,126.86,126.85,0.66000001]
[1764634885305,8.74,126.86,126.85,8.54332677]
[1764634885938,8.88216157,126.86,126.85,0.66000001]
[1764634887588,8.88216157,126.86,126.85,1e-08]
[1764634887805,29.87164706,126.86,126.85,1e-08]
[1764634888306,29.15164706,126.86,126.85,1e-08]
[1764634888513,27.86998698,126.86,126.85,1e-08]
[1764634889000,25.57481183,126.86,126.85,1e-08]
[1764634889206,27.86998698,126.86,126.85,1e-08]
[1764634890231,44.84885098,126.86,126.75,0.1]
[1764634890407,44.84885098,126.86,126.77,0.72]
[1764634890408,0.14216157,126.81,126.77,0.72]
[1764634890704,8.74,126.8,126.77,3.01517515]
[1764634891015,8.74,126.8,126.78,2.29517515]
[1764634891198,8.74,126.8,126.78,3.01517515]
[1764634891508,8.74,126.8,126.79,3.01517515]
[1764634891884,94.70398528,126.88,126.79,3.01517515]
[1764634891885,8.80994492,126.88,126.79,3.01517515]
[1764634892109,8.80994492,126.88,126.78,18.60403915]
[1764634892110,8.95210649,126.86,126.8,0.72]
[1764634892414,19.12999593,126.86,126.8,8.60622647]
[1764634892614,19.12999593,126.86,126.8,3.01517515]
[1764634892798,0.14216157,126.86,126.81,3.01517515]
[1764634892993,0.14216157,126.86,126.82,2.29517515]
[1764634893315,2.43733672,126.86,126.82,0.72]
[1764634893914,0.14216157,126.86,126.82,0.72]
[1764634894120,2.43733672,126.86,126.82,0.72]
[1764634894303,2.43733672,126.86,126.82,8.60507639]
[1764634894512,2.43733672,126.86,126.83,0.72]
[1764634895411,2.29517515,126.85,126.83,0.72]
[1764634895617,8.74,126.84,126.83,0.72]
[1764634896201,8.74,126.84,126.82,7.88513925]
[1764634896202,0.14216157,126.83,126.81,0.72]
[1764634896407,2.43733672,126.83,126.81,0.72]
[1764634897219,0.14216157,126.81,126.75,0.1]
[1764634897415,8.76,126.8,126.79,0.72]
[1764634899020,8.76,126.8,126.79,8.60705733]
[1764634900013,2.29517515,126.82,126.79,8.60705733]
[1764634900218,8.76,126.81,126.8,0.72]
[1764634902501,8.80994492,126.87,126.8,10.90161048]
[1764634902700,11.05517515,126.86,126.81,2.29517515]
[1764634902897,11.05517515,126.86,126.81,2.98517515]
[1764634903215,11.05517515,126.86,126.82,0.69]
[1764634903605,11.05517515,126.86,126.82,8.57460117]
[1764634904009,8.76,126.86,126.83,0.69]
[1764634904411,8.80994492,126.88,126.83,0.69]
[1764634904596,8.76,126.87,126.83,2.98517515]
[1764634904996,8.76,126.87,126.84,0.69]
[1764634905499,8.76,126.87,126.85,7.88332676]
[1764634905932,8.76,126.87,126.86,0.69]
[1764634906702,2.29517515,126.89,126.86,0.69]
[1764634906907,8.76,126.88,126.86,0.69]
[1764634907926,8.76,126.88,126.86,8.57264182]
[1764634908129,3.10733672,126.87,126.83,19.71140518]
[1764634908420,2.29517515,126.86,126.83,24.21140518]
[1764634908721,8.76,126.85,126.84,0.69]
[1764634910028,8.76,126.85,126.84,7.88394828]
[1764634910201,8.76,126.85,126.84,8.57394828]
[1764634912532,8.76,126.85,126.84,0.69]
[1764634912706,8.76,126.85,126.84,8.57394828]
[1764634914234,8.76,126.85,126.84,10.86912343]
[1764634914604,8.74,126.85,126.84,30.57899413]
[1764634917338,8.74,126.85,126.84,28.28381898]
[1764634917634,8.74,126.85,126.84,30.57899413]
[1764634919442,8.74,126.85,126.84,35.07899413]
[1764634919603,8.74,126.85,126.84,5.19]
[1764634919814,8.74,126.85,126.84,13.07394828]
[1764634920015,8.74,126.85,126.84,4.5]
[1764634920318,8.74,126.85,126.84,7.48517515]
[1764634920926,8.74,126.85,126.84,15.36912343]
[1764634922247,0.14216157,126.89,126.84,35.07899413]
[1764634922428,8.74,126.88,126.86,2.29517515]
[1764634922814,8.74,126.88,126.86,2.98517515]
[1764634923327,8.88216157,126.88,126.84,4.5]
[1764634923638,8.88216157,126.88,126.85,7.88332676]
[1764634923837,9.55216157,126.88,126.85,8.57332676]
[1764634924744,9.55216157,126.88,126.85,10.86850191]
[1764634925121,9.55216157,126.88,126.85,8.57332676]
[1764634927038,0.81216157,126.87,126.85,7.88332676]
[1764634927250,0.14216157,126.88,126.85,10.86850191]
[1764634927454,8.74,126.87,126.85,10.86850191]
[1764634928646,8.74,126.87,126.85,10.17850191]
[1764634928852,8.74,126.87,126.85,10.86850191]
[1764634929552,8.74,126.87,126.86,0.69]
[1764634929750,0.14216157,126.88,126.86,0.69]
[1764634929924,8.74,126.87,126.86,0.69]
[1764634930127,8.80994492,126.92,126.86,10.86788049]
[1764634930448,8.74,126.91,126.88,2.29517515]
[1764634930749,8.74,126.91,126.89,2.29517515]
[1764634931132,8.74,126.91,126.89,2.98517515]
[1764634931936,0.67,126.93,126.9,10.88539579]
[1764634932137,8.74,126.92,126.9,10.88539579]
[1764634932331,8.74,126.92,126.9,7.88022064]
[1764634932954,8.74,126.91,126.9,10.88539579]
[1764634933258,8.74,126.91,126.9,8.59022064]
[1764634933440,8.74,126.91,126.88,0.71]
[1764634933640,8.74,126.91,126.89,2.29517515]
[1764634934030,8.74,126.91,126.89,10.88559103]
[1764634935034,8.74,126.9,126.89,10.88559103]
[1764634935360,11.03517515,126.9,126.87,7.88168595]
[1764634935558,9.4,126.9,126.87,7.88168595]
[1764634935855,8.74,126.89,126.88,0.71]
[1764634936160,8.74,126.89,126.88,8.59146279]
[1764634936366,8.74,126.89,126.88,10.88663794]
[1764634937359,8.74,126.89,126.88,8.59146279]
[1764634937671,8.74,126.89,126.88,10.88663794]
[1764634940255,8.74,126.89,126.88,15.38663794]
[1764634944435,0.80216157,126.93,126.88,15.38663794]
[1764634944641,16.6867993,126.96,126.91,2.29517515]
[1764634944849,8.74,126.95,126.92,2.29517515]
[1764634945357,9.4,126.95,126.92,0.71]
[1764634945754,8.74,126.95,126.92,8.58844031]
[1764634945954,0.2,126.99,126.92,8.58844031]
[1764634945955,0.2,126.99,126.94,2.29517515]
[1764634946277,11.03517515,126.98,126.93,0.71]
[1764634946569,0.14216157,126.97,126.93,0.71]
[1764634946767,0.80216157,126.97,126.93,0.71]
[1764634947159,8.74,126.98,126.93,3.00517515]
[1764634947368,0.66,126.98,126.94,3.00517515]
[1764634947550,8.74,126.97,126.94,3.00517515]
[1764634947751,8.74,126.97,126.95,28.2799094]
[1764634949470,8.74,126.97,126.95,27.5699094]
[1764634952047,0.66,126.96,126.94,7.87773751]
[1764634952982,8.74,126.97,126.93,12.37808283]
[1764634953272,0.66,126.96,126.93,12.37808283]
[1764634953462,0.66,126.96,126.93,13.08808283]
[1764634953664,12.97894812,126.97,126.93,32.7839782]
[1764634954352,9.4,126.97,126.93,32.0739782]
[1764634954551,0.34216157,126.99,126.94,4.28894812]
[1764634954759,8.74,126.98,126.94,8.78894812]
[1764634954965,8.74,126.98,126.95,0.71]
[1764634955458,9.4,126.98,126.95,0.71]
[1764634955851,9.4,126.98,126.96,7.87649653]
[1764634956175,8.74,126.98,126.96,7.87649653]
[1764634956367,9.43,126.98,126.96,7.87649653]
[1764634960665,9.43,126.98,126.96,7.87649653]
[1764634961379,13.20105461,126.97,126.92,19.6960409]
[1764634961679,3.57894812,126.96,126.92,20.3760409]
[1764634961984,3.57894812,126.94,126.91,7.87959971]
[1764634962474,4.24894812,126.94,126.91,8.55959971]
[1764634962882,0.67,126.94,126.91,8.55959971]
[1764634963188,0.14216157,126.94,126.92,0.68]
[1764634963369,0.14216157,126.94,126.91,7.87959971]
[1764634963565,0.14216157,126.94,126.91,8.55959971]
[1764634963778,9.39,126.95,126.92,0.68]
[1764634963965,0.67,126.94,126.91,8.55959971]
[1764634964173,12.96894812,126.95,126.91,8.55959971]
[1764634965474,4.24894812,126.95,126.91,8.55959971]
[1764634965670,8.72,126.94,126.91,8.55959971]
[1764634965860,8.72,126.94,126.92,0.68]
[1764634966866,8.72,126.94,126.92,8.55857456]
[1764634967865,16.308864,126.97,126.93,0.68]
[1764634968082,8.72,126.96,126.93,4.25894812]
[1764634968585,8.72,126.96,126.94,0.68]
[1764634968995,8.72,126.96,126.95,7.87711697]
[1764634969792,8.72,126.96,126.95,8.55711697]
[1764634969973,20.08781212,126.99,126.95,8.55711697]
[1764634970289,8.72,126.98,126.96,0.68]
[1764634971378,3.57894812,126.97,126.94,0.68]
[1764634971582,8.72,126.98,126.95,0.68]
[1764634972187,8.72,126.98,126.96,7.87649653]
[1764634972578,8.72,126.98,126.96,8.55649653]
[1764634974473,4.24894812,126.97,126.93,19.69510097]
[1764634974678,3.57894812,126.96,126.93,8.55835815]
[1764634974879,8.72,126.95,126.93,8.55835815]
[1764634978696,8.72,126.95,126.93,28.25425352]
[1764634978879,8.72,126.95,126.93,32.75425352]
[1764634981282,8.72,126.95,126.92,7.87845845]
[1764634981283,0.67,126.94,126.92,7.87845845]
[1764634981483,0.67,126.94,126.89,7.88084167]
[1764634981813,8.72,126.93,126.91,0.68]
[1764634983399,3.57894812,126.95,126.92,7.87897888]
[1764634983699,8.72,126.94,126.92,7.87897888]
[1764634983907,8.72,126.94,126.92,8.55897888]
[1764634984701,8.72,126.94,126.93,8.55835815]
[1764634988308,8.72,126.94,126.93,12.13730627]
[1764634988687,8.72,126.94,126.93,8.55835815]
[1764634989314,8.72,126.94,126.93,28.25425352]
[1764634990387,8.72,126.94,126.93,31.83320164]
[1764634995311,0.9,126.99,126.93,48.14206564]
[1764634995614,0.2,126.99,126.96,16.308864]
[1764634995803,0.2,126.99,126.98,3.57894812]
[1764634996198,0.2,126.99,126.98,4.23894812]
[1764634996807,0.2,126.99,126.97,4.23894812]
[1764634997122,0.2,126.99,126.98,12.11420406]
[1764634999526,0.2,126.99,126.98,8.53525594]
[1764634999719,0.2,126.99,126.98,12.11420406]
[1764635001013,0.2,126.99,126.98,8.53525594]
[1764635001218,0.2,126.99,126.98,12.11420406]
[1764635006817,0.2,126.99,126.98,8.53525594]
[1764635007819,0.2,126.99,126.98,12.11420406]
[1764635008120,0.2,126.99,126.98,8.53525594]
[1764635009017,0.9,126.99,126.98,7.87525594]
[1764635009602,0.2,126.99,126.98,7.87525594]
[1764635009999,0.9,126.99,126.98,7.87525594]
[1764635011201,0.9,126.99,126.97,27.56556666]
[1764635011396,0.2,126.99,126.97,7.87587619]
[1764635011631,4.27894812,126.98,126.94,7.87744007]
[1764635011925,0.7,126.98,126.93,7.87820171]
[1764635012220,3.57894812,126.96,126.93,27.57409708]
[1764635012420,8.72,126.95,126.93,27.57409708]
[1764635012924,0.7,126.96,126.93,27.57409708]
[1764635013126,8.72,126.95,126.93,28.23409708]
[1764635014221,8.72,126.95,126.93,27.57409708]
[1764635014409,8.72,126.95,126.93,28.23409708]
[1764635015618,8.72,126.96,126.94,0.72]
[1764635015799,9.39,126.98,126.94,3.01126957]
[1764635016000,8.72,126.98,126.95,29.86117897]
[1764635016200,8.72,126.98,126.96,2.29126957]
[1764635016407,0.2,126.99,126.96,3.01126957]
[1764635016602,0.2,126.99,126.98,2.29126957]
[1764635016806,0.2,126.99,126.98,3.01126957]
[1764635018116,0.2,126.99,126.98,10.88652551]
[1764635028842,1e-08,126.99,126.98,10.88652551]
[1764635029038,1e-08,127.0,126.99,0.66]
[1764635029220,1e-08,127.0,126.99,2.95126957]
[1764635029928,1e-08,127.0,126.99,10.82590536]
[1764635031546,1e-08,127.01,127.0,2.29126957]
[1764635031730,1e-08,127.01,127.0,2.95126957]
[1764635032445,1e-08,127.01,127.0,10.82528531]
[1764635044160,1e-08,127.01,127.0,15.32528531]
[1764635053173,1e-08,127.01,127.0,40.5862558]
[1764635053340,0.66,127.06,127.05,2.29126957]
[1764635053657,0.66,127.06,127.05,6.79126957]
[1764635054051,0.66,127.06,127.05,4.5]
[1764635054252,0.66,127.06,127.05,6.79126957]
[1764635055061,0.66,127.06,127.05,14.66218653]
[1764635058269,0.66,127.06,127.05,12.37091696]
[1764635059438,0.66,127.06,127.05,7.87091696]
[1764635059643,0.66,127.06,127.04,7.87127556]
[1764635060538,0.66,127.06,127.03,7.87215618]
[1764635064449,0.66,127.06,127.02,27.55402484]
[1764635065079,0.66,127.06,127.02,29.84529441]
[1764635066572,0.2,127.07,127.05,2.29126957]
[1764635066876,0.66,127.06,127.04,27.55037782]
[1764635068265,0.66,127.06,127.04,7.87153652]
[1764635070871,0.66,127.06,127.03,7.87215618]
[1764635071167,0.2,127.07,127.05,2.29126957]
[1764635071357,0.86,127.07,127.05,2.29126957]
[1764635071556,0.86,127.07,127.04,0.7]
[1764635071557,0.86,127.07,127.04,2.29126957]
[1764635071866,0.66,127.06,127.04,2.29126957]
[1764635072882,0.66,127.06,127.03,30.5438162]
[1764635073772,0.66,127.06,127.03,7.87215618]
[1764635075374,0.66,127.06,127.02,7.87277594]
[1764635075674,0.66,127.06,127.02,12.37277594]
[1764635075873,0.66,127.06,127.02,35.62935176]
[1764635076373,8.7,127.05,127.02,35.62935176]
[1764635076867,0.69,127.04,127.02,35.62935176]
[1764635077072,0.69,127.04,127.02,32.05471579]
[1764635077384,9.39,127.05,127.02,36.29935176]
[1764635077684,8.7,127.05,127.02,35.62935176]
[1764635077852,9.39,127.05,127.02,36.29935176]
[1764635078879,8.7,127.05,127.02,36.29935176]
[1764635079078,0.69,127.04,127.02,35.62935176]
[1764635079976,8.7,127.05,127.02,36.29935176]
[1764635080185,0.69,127.04,127.02,36.29935176]
[1764635080481,0.69,127.04,127.02,35.62935176]
[1764635081382,0.69,127.04,127.02,36.31935176]
[1764635081560,8.7,127.05,127.02,36.31935176]
[1764635081761,9.41,127.05,127.02,36.31935176]
[1764635083387,0.71,127.04,127.02,35.62935176]
[1764635083599,0.2,127.07,127.03,4.26463597]
[1764635083882,9.41,127.06,127.02,35.62935176]
[1764635084279,0.71,127.05,127.02,36.31935176]
[1764635084479,0.71,127.05,127.03,0.69]
[1764635084685,0.71,127.05,127.02,36.31935176]
[1764635084986,0.71,127.05,127.04,7.87153652]
[1764635086090,0.71,127.05,127.03,27.55254663]
[1764635086491,8.7,127.06,127.03,28.24254663]
[1764635086674,9.41,127.06,127.03,28.24254663]
[1764635086990,0.71,127.05,127.03,28.24254663]
[1764635088797,0.71,127.05,127.03,32.74254663]
[1764635088994,0.2,127.07,127.03,35.6271826]
[1764635089187,0.2,127.07,127.06,3.57463597]
[1764635090792,0.2,127.07,127.06,11.44493346]
[1764635093586,0.2,127.07,127.06,12.13493346]
[1764635094677,0.2,127.07,127.06,16.63493346]
[1764635097409,0.91,127.07,127.06,12.37029749]
[1764635097575,0.91,127.07,127.06,7.87029749]
[1764635100495,0.2,127.07,127.06,12.13493346]
[1764635101500,0.2,127.07,127.06,11.44493346]
[1764635101698,0.2,127.07,127.06,12.13493346]
[1764635102894,0.2,127.07,127.06,16.53493346]
[1764635103079,0.2,127.07,127.06,15.84493346]
[1764635103799,0.2,127.07,127.06,12.27029749]
[1764635104407,0.2,127.07,127.06,15.84493346]
[1764635105187,0.2,127.07,127.06,16.53493346]
[1764635107104,0.2,127.1,127.09,16.308864]
[1764635107298,0.2,127.12,127.09,28.69344489]
[1764635107486,0.2,127.12,127.11,3.57463597]
[1764635107683,0.2,127.12,127.11,4.26463597]
[1764635108703,0.2,127.12,127.11,12.1318376]
[1764635109303,0.1,127.18,127.11,71.13584987]
[1764635109497,8.7,127.17,127.16,3.57463597]
[1764635110911,9.41,127.17,127.16,11.43874418]
[1764635111295,0.1,127.18,127.16,11.43874418]
[1764635111490,8.8,127.18,127.17,3.57463597]
[1764635111813,9.47,127.18,127.17,3.57463597]
[1764635112011,9.47,127.18,127.16,7.86410821]
[1764635112012,9.47,127.18,127.16,11.43874418]
[1764635113324,9.47,127.18,127.17,3.57463597]
[1764635113516,8.8,127.18,127.17,3.57463597]
[1764635113699,8.8,127.18,127.17,4.23463597]
[1764635113888,0.1,127.18,127.17,4.23463597]
[1764635114513,0.1,127.18,127.17,3.57463597]